[Event "DVM U14 2021"]
[Site "Willingen"]
[Date "2022.08.14"]
[Round "4"]
[White "Ehrig, Leon Chris"]
[Black "Apel, Linus"]
[Result "1-0"]
[ECO "C26"]
[WhiteElo "1832"]
[BlackElo "1488"]
[Annotator "NA RC"]
[PlyCount "77"]
[EventDate "2022.08.12"]
[EventType "team-tourn"]
[EventRounds "7"]
[EventCountry "GER"]
[SourceTitle "playchess.com"]
[Source "ChessBase"]
[SourceQuality "1"]
[TimeControl "40/5400+30:1800+30"]

1. e4 {[%emt 0:00:12]} e5 {[%emt 0:02:28]} 2. Nc3 {[%emt 0:00:07]} Nf6 {[%emt 0:00:03]} 3. g3 {[%emt 0:01:23]} Bc5 {[%emt 0:01:12]} 4. Bg2 {[%emt 0:00:19]} Nc6 {[%emt 0:00:09]} 5. Nge2 {[%emt 0:00:21]} d6 {[%emt 0:01:06]} 6. O-O {[%emt 0:00:30]} O-O {[%emt 0:00:17]} 7. d3 {[%emt 0:01:43]} h6 {[%emt 0:00:29]} 8. h3 {[%emt 0:03:47]} Nh7 {[%emt 0:03:01]} 9. Na4 {[%emt 0:00:54]} Bb6 {[%emt 0:00:22]} 10. Nxb6 {[%emt 0:00:06]} axb6 {[%emt 0:12:11]} 11. f4 $14 {[%emt 0:01:44]} f5 {[%emt 0:09:43]} 12. Be3 {[%emt 0:07:19]} Qe7 {[%emt 0:07:37]} 13. Qd2 {[%emt 0:06:15]} Bd7 {[%emt 0:10:59]} 14. Nc3 {[%emt 0:09:09]} Qd8 {[%emt 0:11:00]} 15. Rae1 {[%emt 0:04:10]} fxe4 {[%emt 0:02:16]} 16. dxe4 {[%emt 0:05:29]} Be6 {[%emt 0:03:29]} 17. f5 {[%emt 0:01:38]} Bc4 {[%emt 0:00:37]} 18. Rf2 {[%emt 0:00:55]} Qf6 {[%emt 0:07:02]} 19. b3 {[%emt 0:00:54]} Bf7 {[%emt 0:00:20]} 20. a4 {[%emt 0:02:36]} Rad8 {[%emt 0:01:11]} 21. Nd5 {[%emt 0:00:41]} Bxd5 {[%emt 0:01:31]} 22. exd5 {[%emt 0:02:21]} Nb8 {[%emt 0:04:30]} 23. h4 {[%emt 0:00:36]} Nd7 {[%emt 0:03:00]} 24. a5 {[%emt 0:02:37]} bxa5 {[%emt 0:00:08]} 25. Qxa5 {[%emt 0:00:56]} Rc8 {[%emt 0:00:38]} 26. Qb5 {[%emt 0:01:19]} Qe7 {[%emt 0:02:45]} 27. Qxb7 {[%emt 0:00:29]} Nhf6 {[%emt 0:00:51]} 28. Qb4 {[%emt 0:01:25]} Rb8 {[%emt 0:01:47]} 29. Qc4 {[%emt 0:00:27]} Nb6 {[%emt 0:02:10]} 30. Bxb6 {[%emt 0:00:15]} Rxb6 {[%emt 0:01:32]} 31. Ra1 {[%emt 0:01:15]} Rfb8 {[%emt 0:00:33]} 32. Ra4 {[%emt 0:03:14]} Qd7 {[%emt 0:05:38]} 33. g4 {[%emt 0:01:28]} Nh7 {[%emt 0:04:08]} 34. g5 {[%emt 0:00:25]} hxg5 {[%emt 0:00:07]} 35. hxg5 {[%emt 0:00:59]} Nxg5 {[%emt 0:00:27]} 36. Qh4 {[%emt 0:05:20]} Nh7 {[%emt 0:00:28]} 37. f6 {[%emt 0:02:36]} Rf8 {[%emt 0:00:19]} 38. Bh3 {[%emt 0:03:07]} Qd8 {[%emt 0:00:39]} 39. Be6+ {[%emt 0:00:47]} 1-0

[Event "DVM U14 2021"]
[Site "Willingen"]
[Date "2022.08.14"]
[Round "4"]
[White "Malinowsky, Levi"]
[Black "Englert, Luca"]
[Result "1-0"]
[ECO "B53"]
[WhiteElo "1814"]
[BlackElo "1741"]
[Annotator "NA RC"]
[PlyCount "105"]
[EventDate "2022.08.12"]
[EventType "team-tourn"]
[EventRounds "7"]
[EventCountry "GER"]
[SourceTitle "playchess.com"]
[Source "ChessBase"]
[SourceQuality "1"]
[TimeControl "40/5400+30:1800+30"]

1. e4 {[%emt 0:00:05]} c5 {[%emt 0:00:00]} 2. Nf3 {[%emt 0:00:05]} d6 {[%emt 0:00:00]} 3. d4 {[%emt 0:00:05]} cxd4 {[%emt 0:00:12]} 4. Qxd4 {[%emt 0:00:05]} Nc6 {[%emt 0:00:10]} 5. Qe3 {[%emt 0:00:23]} g6 {[%emt 0:01:20]} 6. c4 {[%emt 0:00:59]} Bg7 {[%emt 0:01:19]} 7. Nc3 {[%emt 0:00:16]} Nf6 {[%emt 0:00:12]} 8. h3 {[%emt 0:02:02]} O-O {[%emt 0:01:01]} 9. Be2 {[%emt 0:06:45]} e6 {[%emt 0:05:10]} 10. O-O {[%emt 0:04:20]} Nb4 {[%emt 0:04:14]} 11. Qd2 {[%emt 0:06:19]} d5 {[%emt 0:05:23]} 12. Rd1 {[%emt 0:01:04]} Qa5 {[%emt 0:02:51]} 13. exd5 {[%emt 0:00:43]} exd5 {[%emt 0:00:45]} 14. Nxd5 {[%emt 0:02:08]} Nfxd5 {[%emt 0:00:09]} 15. cxd5 {[%emt 0:03:18]} Qc5 {[%emt 0:03:55]} 16. a3 {[%emt 0:02:48]} Na6 {[%emt 0:01:53]} 17. b4 {[%emt 0:00:33]} Qd6 {[%emt 0:00:44]} 18. Bb2 {[%emt 0:03:16]} Bxb2 {[%emt 0:00:27]} 19. Qxb2 {[%emt 0:01:37]} Nc7 {[%emt 0:07:03]} 20. Bc4 {[%emt 0:04:15]} b5 {[%emt 0:01:48]} 21. Bb3 {[%emt 0:00:16]} Bb7 {[%emt 0:07:48]} 22. Rd4 {[%emt 0:05:24]} Qf6 {[%emt 0:04:18]} 23. Qc1 {[%emt 0:00:43]} Rac8 {[%emt 0:05:30]} 24. Qd1 {[%emt 0:02:52]} Rfd8 {[%emt 0:02:54]} 25. Rc1 {[%emt 0:05:57]} Qd6 {[%emt 0:03:01]} 26. Qd2 {[%emt 0:02:31]} Rd7 {[%emt 0:01:41]} 27. Rd1 {[%emt 0:01:03]} Rcd8 {[%emt 0:08:43]} 28. Qc3 {[%emt 0:09:09]} Qa6 {[%emt 0:15:19]} 29. Ne5 {[%emt 0:01:50]} Nxd5 {[%emt 0:05:30]} 30. Qf3 {[%emt 0:01:52]} Nf6 {[%emt 0:04:19]} 31. Qe3 {[%emt 0:01:37]} Rxd4 {[%emt 0:01:41]} 32. Rxd4 {[%emt 0:04:18]} Bd5 {[%emt 0:02:26]} 33. Qd3 {[%emt 0:02:32]} Qxa3 {[%emt 0:02:33]} 34. Kh2 {[%emt 0:02:57]} Qb2 {[%emt 0:00:51]} 35. Nc6 {[%emt 0:03:40]} Qxf2 {[%emt 0:00:22]} 36. Ne7+ {[%emt 0:00:01]} Kg7 {[%emt 0:00:30]} 37. Nxd5 {[%emt 0:01:16]} h5 {[%emt 0:01:30]} 38. Ne3 {[%emt 0:01:01]} Re8 {[%emt 0:00:42]} 39. Nd1 {[%emt 0:00:32]} Qe1 {[%emt 0:00:36]} 40. Rf4 {[%emt 0:04:31]} h4 {[%emt 0:00:00]} 41. Nf2 {[%emt 0:08:44]} Qe5 {[%emt 0:06:18]} 42. Qd4 {[%emt 0:06:00]} Qxd4 {[%emt 0:00:06]} 43. Rxd4 {[%emt 0:00:11]} g5 {[%emt 0:06:21]} 44. Nd3 {[%emt 0:03:01]} Re2 {[%emt 0:02:48]} 45. Nc5 {[%emt 0:02:48]} Nh5 {[%emt 0:00:22]} 46. Bd1 {[%emt 0:01:14]} Re5 {[%emt 0:00:18]} 47. Bxh5 {[%emt 0:00:04]} a5 {[%emt 0:00:21]} 48. Nd3 {[%emt 0:00:43]} Re3 {[%emt 0:00:17]} 49. bxa5 {[%emt 0:00:09]} f5 {[%emt 0:00:26]} 50. a6 {[%emt 0:00:10]} Re7 {[%emt 0:00:21]} 51. Bf3 {[%emt 0:00:52]} g4 {[%emt 0:00:07]} 52. hxg4 {[%emt 0:00:11]} fxg4 {[%emt 0:00:06]} 53. Rxg4+ {[%emt 4:06:43]} 1-0

[Event "DVM U14 2021"]
[Site "Willingen"]
[Date "2022.08.14"]
[Round "4"]
[White "Braeutigam, Alexander"]
[Black "Vecera, Fabio"]
[Result "1-0"]
[ECO "D85"]
[WhiteElo "1771"]
[BlackElo "1527"]
[Annotator "NA RC"]
[PlyCount "109"]
[EventDate "2022.08.12"]
[EventType "team-tourn"]
[EventRounds "7"]
[EventCountry "GER"]
[SourceTitle "playchess.com"]
[Source "ChessBase"]
[SourceQuality "1"]
[TimeControl "40/5400+30:1800+30"]

1. d4 {[%emt 0:00:08]} Nf6 {[%emt 0:00:00]} 2. c4 {[%emt 0:00:09]} g6 {[%emt 0:00:00]} 3. Nc3 {[%emt 0:00:06]} d5 {[%emt 0:00:00]} 4. cxd5 {[%emt 0:00:06]} Nxd5 {[%emt 0:00:00]} 5. e4 {[%emt 0:00:08]} Nxc3 {[%emt 0:00:00]} 6. bxc3 {[%emt 0:00:09]} Bg7 {[%emt 0:00:25]} 7. Be3 {[%emt 0:00:14]} c5 {[%emt 0:00:39]} 8. Bb5+ {[%emt 0:00:17]} Bd7 {[%emt 0:00:09]} 9. Bxd7+ {[%emt 0:00:26]} Qxd7 {[%emt 0:00:41]} 10. Nf3 {[%emt 0:00:14]} Nc6 {[%emt 0:00:17]} 11. O-O {[%emt 0:00:19]} O-O {[%emt 0:01:36]} 12. Qd2 {[%emt 0:00:55]} cxd4 {[%emt 0:00:13]} 13. cxd4 {[%emt 0:01:44]} Rfd8 {[%emt 0:00:12]} 14. Rfd1 {[%emt 0:09:56]} Qg4 {[%emt 0:03:14]} 15. Qd3 {[%emt 0:07:57]} b6 {[%emt 0:00:42]} 16. h3 {[%emt 0:03:59]} Qd7 {[%emt 0:00:23]} 17. Rac1 {[%emt 0:15:08]} Ne5 {[%emt 0:04:30]} 18. Nxe5 {[%emt 0:00:13]} Bxe5 {[%emt 0:03:31]} 19. Qb3 {[%emt 0:03:10]} Bg7 {[%emt 0:06:14]} 20. d5 {[%emt 0:12:06]} Rac8 {[%emt 0:06:17]} 21. f4 {[%emt 0:10:06]} Rxc1 {[%emt 0:00:17]} 22. Rxc1 {[%emt 0:02:00]} e6 {[%emt 0:01:30]} 23. dxe6 {[%emt 0:11:30]} Qxe6 {[%emt 0:00:14]} 24. Qxe6 {[%emt 0:00:01]} fxe6 {[%emt 0:01:13]} 25. Kf2 {[%emt 0:02:12]} Rd7 {[%emt 0:03:10]} 26. Rc8+ {[%emt 0:00:22]} Kf7 {[%emt 0:00:08]} 27. e5 {[%emt 0:02:56]} Bf8 {[%emt 0:00:29]} 28. Ke2 {[%emt 0:02:44]} Bb4 {[%emt 0:01:03]} 29. Rc4 {[%emt 0:04:50]} Be7 {[%emt 0:01:04]} 30. g4 {[%emt 0:06:57]} Rd5 {[%emt 0:00:38]} 31. Ra4 {[%emt 0:01:00]} Rd7 {[%emt 0:00:21]} 32. Kf3 {[%emt 0:02:09]} Bc5 {[%emt 0:00:37]} 33. Bxc5 {[%emt 0:00:01]} bxc5 {[%emt 0:00:24]} 34. Ke4 {[%emt 0:00:35]} Ke7 {[%emt 0:01:00]} 35. Ra5 {[%emt 0:02:35]} Rc7 {[%emt 0:00:57]} 36. Kd3 {[%emt 0:00:37]} Rd7+ {[%emt 0:00:17]} 37. Kc3 {[%emt 0:00:28]} Rd4 {[%emt 0:00:18]} 38. Rxa7+ {[%emt 0:00:15]} Kd8 {[%emt 0:00:16]} 39. Rxh7 {[%emt 0:00:06]} Rxf4 {[%emt 0:00:13]} 40. Rh6 {[%emt 0:00:58]} Re4 {[%emt 0:00:18]} 41. Rxg6 {[%emt 0:30:18]} Rxe5 {[%emt 0:30:31]} 42. h4 {[%emt 0:00:12]} Ke7 {[%emt 0:00:42]} 43. g5 {[%emt 0:00:00]} Re4 {[%emt 0:00:00]} 44. h5 {[%emt 0:00:00]} Rh4 {[%emt 0:00:00]} 45. h6 {[%emt 0:00:00]} Kd6 {[%emt 0:00:00]} 46. Rg7 {[%emt 0:00:00]} Kd5 {[%emt 0:00:00]} 47. h7 {[%emt 0:00:00]} Rh3+ {[%emt 0:00:00]} 48. Kb2 {[%emt 0:00:00]} c4 {[%emt 0:00:00]} 49. g6 {[%emt 0:02:29]} Rh2+ {[%emt 0:00:00]} 50. Kc3 {[%emt 0:00:06]} Rh3+ {[%emt 0:00:00]} 51. Kb4 {[%emt 0:00:12]} c3 {[%emt 0:00:00]} 52. Rc7 {[%emt 0:02:23]} e5 {[%emt 0:00:00]} 53. Rxc3 {[%emt 0:00:13]} Rh4+ {[%emt 0:00:00]} 54. Kb3 {[%emt 0:00:16]} e4 {[%emt 0:00:00]} 55. g7 1-0

[Event "DVM U14 2021"]
[Site "Willingen"]
[Date "2022.08.14"]
[Round "4"]
[White "Nitsche, Nikolai"]
[Black "Lichtinger, Simon"]
[Result "1/2-1/2"]
[ECO "E67"]
[WhiteElo "1764"]
[BlackElo "1473"]
[Annotator "NA RC"]
[PlyCount "61"]
[EventDate "2022.08.12"]
[EventType "team-tourn"]
[EventRounds "7"]
[EventCountry "GER"]
[SourceTitle "playchess.com"]
[Source "ChessBase"]
[SourceQuality "1"]
[TimeControl "40/5400+30:1800+30"]

1. Nf3 {[%emt 0:00:03]} Nf6 {[%emt 0:00:04]} 2. g3 {[%emt 0:00:04]} g6 {[%emt 0:00:03]} 3. Bg2 {[%emt 0:00:05]} Bg7 {[%emt 0:00:04]} 4. O-O {[%emt 0:00:08]} O-O {[%emt 0:00:03]} 5. c4 {[%emt 0:00:05]} d6 {[%emt 0:00:24]} 6. d4 {[%emt 0:00:05]} Nbd7 {[%emt 0:01:42]} 7. Nc3 {[%emt 0:00:27]} e5 {[%emt 0:00:21]} 8. dxe5 {[%emt 0:01:51]} dxe5 {[%emt 0:00:11]} 9. Be3 {[%emt 0:00:05]} Qe7 {[%emt 0:02:28]} 10. Qd2 {[%emt 0:05:22]} Ng4 {[%emt 0:02:25]} 11. Bg5 {[%emt 0:03:40]} f6 {[%emt 0:04:09]} 12. h3 {[%emt 0:01:12]} fxg5 {[%emt 0:02:45]} 13. hxg4 {[%emt 0:00:33]} c6 {[%emt 0:04:09]} 14. Qxg5 {[%emt 0:04:09]} Qxg5 {[%emt 0:01:55]} 15. Nxg5 {[%emt 0:00:11]} Nf6 {[%emt 0:01:31]} 16. f3 {[%emt 0:01:58]} h6 {[%emt 0:01:18]} 17. Nge4 {[%emt 0:00:09]} Nxe4 {[%emt 0:03:38]} 18. Nxe4 {[%emt 0:00:10]} Rd8 {[%emt 0:12:43]} 19. Rfd1 {[%emt 0:01:07]} Be6 {[%emt 0:01:58]} 20. b3 {[%emt 0:01:49]} Bf8 {[%emt 0:04:48]} 21. Kf2 {[%emt 0:02:52]} b5 {[%emt 0:04:45]} 22. cxb5 {[%emt 0:05:45]} cxb5 {[%emt 0:00:16]} 23. Rxd8 {[%emt 0:00:43]} Rxd8 {[%emt 0:00:09]} 24. Rc1 {[%emt 0:00:10]} Bd5 {[%emt 0:03:42]} 25. Nf6+ {[%emt 0:18:20]} Kf7 {[%emt 0:01:29]} 26. g5 {[%emt 0:03:31]} hxg5 {[%emt 0:02:32]} 27. Ng4 {[%emt 0:00:17]} Ke6 {[%emt 0:23:09]} 28. Bh3 {[%emt 0:03:57]} Be7 {[%emt 0:04:32]} 29. Nh6+ {[%emt 0:05:33]} Kf6 {[%emt 0:02:11]} 30. Rc7 {[%emt 0:17:25]} Be6 {[%emt 0:01:19]} 31. Ng4+ {[%emt 0:03:22]} 1/2-1/2

[Event "DVM U14 2021"]
[Site "Willingen"]
[Date "2022.08.14"]
[Round "4"]
[White "Bongardt, Livius"]
[Black "Schwartz, Oliver"]
[Result "1-0"]
[ECO "B94"]
[WhiteElo "1756"]
[BlackElo "1872"]
[Annotator "NA RC"]
[PlyCount "25"]
[EventDate "2022.08.12"]
[EventType "team-tourn"]
[EventRounds "7"]
[EventCountry "GER"]
[SourceTitle "playchess.com"]
[Source "ChessBase"]
[SourceQuality "1"]
[TimeControl "40/5400+30:1800+30"]

1. e4 {[%emt 0:00:05]} c5 {[%emt 0:00:00]} 2. Nf3 {[%emt 0:00:19]} d6 {[%emt 0:00:00]} 3. d4 {[%emt 0:00:07]} cxd4 {[%emt 0:00:00]} 4. Nxd4 {[%emt 0:00:07]} Nf6 {[%emt 0:00:00]} 5. Nc3 {[%emt 0:00:05]} a6 {[%emt 0:00:00]} 6. Bg5 {[%emt 0:00:12]} Nbd7 {[%emt 0:26:41]} 7. Bc4 {[%emt 0:01:06]} e6 {[%emt 0:37:54]} 8. Qd2 {[%emt 0:02:29]} b5 {[%emt 0:10:34]} 9. Bxe6 {[%emt 0:01:32]} fxe6 {[%emt 0:00:10]} 10. Nxe6 {[%emt 0:05:18]} Qb6 {[%emt 0:00:31]} 11. Nd5 {[%emt 0:03:30]} Nxd5 {[%emt 0:00:35]} 12. Qxd5 {[%emt 0:04:05]} Bb7 {[%emt 0:00:44]} 13. Nc7+ {[%emt 0:02:05]} 1-0

[Event "DVM U14 2021"]
[Site "Willingen"]
[Date "2022.08.14"]
[Round "4"]
[White "Malan, Jan-Willem"]
[Black "Vesszö, Aaron"]
[Result "1-0"]
[ECO "A26"]
[WhiteElo "1747"]
[BlackElo "1306"]
[Annotator "NA RC"]
[PlyCount "62"]
[EventDate "2022.08.12"]
[EventType "team-tourn"]
[EventRounds "7"]
[EventCountry "GER"]
[SourceTitle "playchess.com"]
[Source "ChessBase"]
[SourceQuality "1"]
[TimeControl "40/5400+30:1800+30"]

1. c4 {[%emt 0:00:05]} Nf6 {[%emt 0:00:07]} 2. g3 {[%emt 0:00:56]} g6 {[%emt 0:00:25]} 3. Bg2 {[%emt 0:00:31]} Bg7 {[%emt 0:00:16]} 4. Nc3 {[%emt 0:00:35]} O-O {[%emt 0:00:18]} 5. e4 {[%emt 0:00:25]} d6 {[%emt 0:00:05]} 6. d3 {[%emt 0:00:27]} e5 {[%emt 0:00:18]} 7. Nge2 {[%emt 0:01:12]} Ne8 {[%emt 0:01:07]} 8. O-O {[%emt 0:00:18]} Nc6 {[%emt 0:01:33]} 9. f4 {[%emt 0:00:47]} a6 {[%emt 0:10:11]} 10. b3 {[%emt 0:03:35]} Rb8 {[%emt 0:01:15]} 11. a4 {[%emt 0:02:11]} f5 {[%emt 0:02:53]} 12. fxe5 {[%emt 0:04:29]} dxe5 {[%emt 0:01:03]} 13. Be3 {[%emt 0:11:05]} Nb4 {[%emt 0:03:07]} 14. Bc5 {[%emt 0:02:23]} Qxd3 {[%emt 0:15:21]} 15. Bxb4 {[%emt 0:03:04]} Qe3+ {[%emt 0:00:29]} 16. Kh1 {[%emt 0:01:34]} c5 {[%emt 0:00:33]} 17. Nd5 {[%emt 0:01:07]} Qg5 {[%emt 0:00:47]} 18. Bxc5 {[%emt 0:01:34]} Rf7 {[%emt 0:02:58]} 19. h4 {[%emt 0:06:33]} Qd8 {[%emt 0:03:43]} 20. Ne7+ {[%emt 0:00:14]} Qxe7 {[%emt 0:05:21]} 21. Bxe7 {[%emt 0:00:30]} Rxe7 {[%emt 0:00:11]} 22. Qc2 {[%emt 0:03:59]} Nf6 {[%emt 0:00:39]} 23. Rad1 {[%emt 0:01:56]} Be6 {[%emt 0:05:49]} 24. Qd2 {[%emt 0:03:21]} Rd7 {[%emt 0:00:53]} 25. Qa5 {[%emt 0:02:02]} Rxd1 {[%emt 0:01:43]} 26. Rxd1 {[%emt 0:01:13]} Nd7 {[%emt 0:05:07]} 27. Rxd7 {[%emt 0:01:07]} Bxd7 {[%emt 0:03:13]} 28. Qd5+ {[%emt 0:04:42]} Be6 {[%emt 0:00:17]} 29. Qxe6+ {[%emt 0:00:06]} Kh8 {[%emt 0:00:15]} 30. Qd6 {[%emt 0:01:00]} Rf8 {[%emt 0:00:06]} 31. exf5 {[%emt 0:00:19]} Rxf5 {[%emt 0:00:23]} 1-0

[Event "DVM U14 2021"]
[Site "Willingen"]
[Date "2022.08.14"]
[Round "4"]
[White "Tomasjan, Samuel"]
[Black "Krüger, Arthur"]
[Result "1/2-1/2"]
[ECO "C10"]
[WhiteElo "1741"]
[BlackElo "1996"]
[Annotator "NA RC"]
[PlyCount "128"]
[EventDate "2022.08.12"]
[EventType "team-tourn"]
[EventRounds "7"]
[EventCountry "GER"]
[SourceTitle "playchess.com"]
[Source "ChessBase"]
[SourceQuality "1"]
[TimeControl "40/5400+30:1800+30"]

1. e4 {[%emt 0:00:03]} e6 {[%emt 0:00:09]} 2. d4 {[%emt 0:00:04]} d5 {[%emt 0:00:04]} 3. Nd2 {[%emt 0:00:03]} dxe4 {[%emt 0:01:12]} 4. Nxe4 {[%emt 0:00:05]} Nf6 {[%emt 0:00:13]} 5. Nxf6+ {[%emt 0:00:10]} Qxf6 {[%emt 0:00:41]} 6. Nf3 {[%emt 0:00:09]} Qd8 {[%emt 0:01:21]} 7. Bd3 {[%emt 0:01:13]} Nd7 {[%emt 0:03:17]} 8. O-O {[%emt 0:01:34]} Nf6 {[%emt 0:00:38]} 9. c3 {[%emt 0:01:00]} Be7 {[%emt 0:01:40]} 10. Qe2 {[%emt 0:06:16]} O-O {[%emt 0:03:45]} 11. Bg5 $16 {[%emt 0:08:32]} Rb8 {[%emt 0:10:02]} 12. Ne5 {[%emt 0:02:35]} Nd7 {[%emt 0:05:56]} 13. Bxe7 {[%emt 0:14:30]} Qxe7 {[%emt 0:00:40]} 14. f4 {[%emt 0:01:37]} Nxe5 {[%emt 0:10:22]} 15. fxe5 {[%emt 0:01:27]} c5 {[%emt 0:03:30]} 16. Qh5 {[%emt 0:08:00]} g6 {[%emt 0:09:23]} 17. Qh6 {[%emt 0:00:53]} cxd4 {[%emt 0:09:32]} 18. cxd4 {[%emt 0:02:15]} Bd7 {[%emt 0:05:58]} 19. Qf4 {[%emt 0:11:07]} Bc6 {[%emt 0:06:32]} 20. Rae1 {[%emt 0:03:25]} Rbd8 {[%emt 0:02:44]} 21. Qe3 {[%emt 0:10:06]} Qb4 {[%emt 0:02:43]} 22. Rf4 {[%emt 0:00:33]} Qxb2 {[%emt 0:01:42]} 23. Re2 {[%emt 0:00:51]} Qa1+ {[%emt 0:00:30]} 24. Kf2 {[%emt 0:02:40]} Rd7 {[%emt 0:03:22]} 25. Bc4 {[%emt 0:09:00]} Bd5 {[%emt 0:05:37]} 26. Bd3 {[%emt 0:05:55]} Rc7 {[%emt 0:01:32]} 27. h4 {[%emt 0:04:39]} Rc3 {[%emt 0:03:08]} 28. Qd2 {[%emt 0:00:27]} Rfc8 {[%emt 0:01:32]} 29. Be4 {[%emt 0:02:27]} Bxe4 {[%emt 0:02:03]} 30. Rfxe4 {[%emt 0:00:06]} Qc1 {[%emt 0:03:09]} 31. d5 {[%emt 0:02:46]} Qxd2 {[%emt 0:00:49]} 32. Rxd2 {[%emt 0:00:04]} exd5 {[%emt 0:00:10]} 33. Red4 {[%emt 0:00:20]} R8c5 {[%emt 0:01:19]} 34. Rxd5 {[%emt 0:00:11]} Rxd5 {[%emt 0:00:32]} 35. Rxd5 {[%emt 0:00:03]} Rc2+ {[%emt 0:00:47]} 36. Kf3 {[%emt 0:00:06]} Rxa2 {[%emt 0:00:54]} 37. Rd8+ {[%emt 0:00:03]} Kg7 {[%emt 0:00:07]} 38. Rd7 {[%emt 0:00:05]} Ra6 {[%emt 0:01:04]} 39. Rxb7 {[%emt 0:00:06]} Re6 {[%emt 0:00:29]} 40. Rxa7 {[%emt 0:02:25]} Rxe5 {[%emt 0:00:08]} 41. g3 {[%emt 0:04:34]} Kf6 {[%emt 0:02:01]} 42. Ra6+ {[%emt 0:01:27]} Re6 {[%emt 0:00:39]} 43. Ra5 {[%emt 0:00:09]} Re7 {[%emt 0:00:59]} 44. Kf4 {[%emt 0:01:19]} Rb7 {[%emt 0:02:09]} 45. Ra6+ {[%emt 0:01:37]} Kg7 {[%emt 0:00:08]} 46. Ra5 {[%emt 0:02:06]} f5 {[%emt 0:00:45]} 47. Ra4 {[%emt 0:06:05]} Rb1 {[%emt 0:05:11]} 48. Ra7+ {[%emt 0:02:19]} Kh6 {[%emt 0:00:46]} 49. Kf3 {[%emt 0:01:08]} Rb4 {[%emt 0:00:54]} 50. Rf7 {[%emt 0:00:43]} Re4 {[%emt 0:02:46]} 51. Ra7 {[%emt 0:00:45]} g5 {[%emt 0:02:59]} 52. hxg5+ {[%emt 0:03:09]} Kg6 {[%emt 0:00:19]} 53. Ra8 {[%emt 0:01:04]} Kxg5 {[%emt 0:00:33]} 54. Rg8+ {[%emt 0:00:08]} Kh5 {[%emt 0:01:57]} 55. Rf8 {[%emt 0:01:12]} Kg6 {[%emt 0:00:21]} 56. Rg8+ {[%emt 0:00:14]} Kf7 {[%emt 0:00:27]} 57. Rg5 {[%emt 0:00:14]} Kf6 {[%emt 0:00:27]} 58. Rg8 {[%emt 0:00:11]} Re7 {[%emt 0:01:44]} 59. Kf4 {[%emt 0:00:11]} Re1 {[%emt 0:00:50]} 60. Rf8+ {[%emt 0:01:16]} Kg6 {[%emt 0:00:22]} 61. Rg8+ {[%emt 0:00:13]} Kf7 {[%emt 0:00:18]} 62. Rg5 {[%emt 0:00:09]} Ke6 {[%emt 0:00:35]} 63. Rh5 {[%emt 0:00:21]} Rf1+ {[%emt 0:01:23]} 64. Ke3 {[%emt 0:00:18]} Rg1 {[%emt 0:00:30]} 1/2-1/2

[Event "DVM U14 2021"]
[Site "Willingen"]
[Date "2022.08.14"]
[Round "4"]
[White "Schoen, Florian"]
[Black "Braeutigam, Katerina"]
[Result "1/2-1/2"]
[ECO "B13"]
[WhiteElo "1688"]
[BlackElo "1781"]
[Annotator "NA RC"]
[PlyCount "99"]
[EventDate "2022.08.12"]
[EventType "team-tourn"]
[EventRounds "7"]
[EventCountry "GER"]
[SourceTitle "playchess.com"]
[Source "ChessBase"]
[SourceQuality "1"]
[TimeControl "40/5400+30:1800+30"]

1. e4 {[%emt 0:00:02]} c6 {[%emt 0:00:03]} 2. d4 {[%emt 0:00:17]} d5 {[%emt 0:00:03]} 3. exd5 {[%emt 0:00:15]} cxd5 {[%emt 0:00:04]} 4. Bd3 {[%emt 0:00:16]} Nc6 {[%emt 0:00:05]} 5. c3 {[%emt 0:00:05]} g6 {[%emt 0:00:07]} 6. Bf4 {[%emt 0:00:09]} Nf6 {[%emt 0:00:10]} 7. h3 {[%emt 0:00:08]} Bg7 {[%emt 0:00:15]} 8. Nf3 {[%emt 0:00:58]} O-O {[%emt 0:01:30]} 9. O-O {[%emt 0:01:16]} Bf5 {[%emt 0:01:02]} 10. Be2 {[%emt 0:12:05]} a6 {[%emt 0:06:06]} 11. Nbd2 {[%emt 0:00:24]} b5 {[%emt 0:02:01]} 12. a3 {[%emt 0:00:46]} Qb6 {[%emt 0:02:11]} 13. g4 {[%emt 0:02:00]} Bc8 {[%emt 0:09:34]} 14. Ne5 {[%emt 0:02:27]} Nxe5 {[%emt 0:11:16]} 15. Bxe5 {[%emt 0:04:03]} Nd7 {[%emt 0:16:02]} 16. Bxg7 {[%emt 0:01:32]} Kxg7 {[%emt 0:00:02]} 17. b4 {[%emt 0:08:24]} e5 {[%emt 0:09:02]} 18. Nb3 {[%emt 0:03:34]} e4 {[%emt 0:08:04]} 19. Nc5 {[%emt 0:01:31]} f5 {[%emt 0:04:03]} 20. f4 {[%emt 0:09:54]} Nf6 {[%emt 0:13:13]} 21. g5 {[%emt 0:01:01]} Ne8 {[%emt 0:01:56]} 22. Qd2 {[%emt 0:02:05]} Nd6 {[%emt 0:05:21]} 23. Kf2 {[%emt 0:08:18]} Rf7 {[%emt 0:03:28]} 24. Ke3 {[%emt 0:07:48]} Rfa7 {[%emt 0:03:03]} 25. Ra2 {[%emt 0:06:45]} a5 {[%emt 0:02:02]} 26. Rfa1 {[%emt 0:00:26]} a4 {[%emt 0:01:39]} 27. Rh1 {[%emt 0:00:48]} Kg8 {[%emt 0:00:51]} 28. Bf1 {[%emt 0:00:35]} Rg7 {[%emt 0:00:37]} 29. Qh2 {[%emt 0:00:27]} Raa7 {[%emt 0:00:29]} 30. h4 {[%emt 0:00:48]} Kf8 {[%emt 0:00:34]} 31. h5 {[%emt 0:02:53]} Rg8 {[%emt 0:00:24]} 32. hxg6 {[%emt 0:01:37]} hxg6 {[%emt 0:00:01]} 33. Rg2 {[%emt 0:00:14]} Rag7 {[%emt 0:00:32]} 34. Rg3 {[%emt 0:00:29]} Qa7 {[%emt 0:01:05]} 35. Rh3 {[%emt 0:00:34]} Qf7 {[%emt 0:00:34]} 36. Qg1 {[%emt 0:06:06]} Ke8 {[%emt 0:00:08]} 37. R1h2 {[%emt 0:00:31]} Qf8 {[%emt 0:00:31]} 38. Qh1 {[%emt 0:03:38]} Kf7 {[%emt 0:00:29]} 39. Rh6 {[%emt 0:06:04]} Qe8 {[%emt 0:00:38]} 40. R2h4 {[%emt 0:01:15]} Qf8 {[%emt 0:00:29]} 41. Qh2 {[%emt 0:31:50]} Ke7 {[%emt 0:05:35]} 42. Qc2 {[%emt 0:00:00]} Bd7 {[%emt 0:10:44]} 43. Qh2 {[%emt 0:00:00]} Bc8 {[%emt 0:00:55]} 44. Rh8 {[%emt 0:00:00]} Kf7 {[%emt 0:01:32]} 45. Rxg8 {[%emt 0:00:00]} Rxg8 {[%emt 0:00:16]} 46. Rh7+ {[%emt 0:00:00]} Rg7 {[%emt 0:00:34]} 47. Rh8 {[%emt 0:00:00]} Rg8 {[%emt 0:01:02]} 48. Qh7+ {[%emt 0:00:00]} Qg7 {[%emt 0:00:11]} 49. Qxg7+ {[%emt 0:00:00]} Kxg7 {[%emt 0:00:10]} 50. Rxg8+ {[%emt 0:00:00]} 1/2-1/2